[Event "Titled Tuesday Blitz April 18 Early 2023"]
[White "Baches Garcia, Guillermo"]
[Black "Brunner, Nicolas"]
[WhiteFideId "2209764"]
[BlackFideId "620246"]
[WhiteElo "2476"]
[BlackElo "2327"]
[Result "1/2-1/2"]
[Round "11"]
[TimeControl "180+2"]
[Date "2023.04.18"]
[WhiteClock "0:02:53"]
[BlackClock "0:02:44"]

1. e4 {[%clk 0:03:00]}  e5 {[%clk 0:02:59]} 2. Nf3 {[%clk 0:03:01]}  Nf6 {[%clk 0:03:00]} 3. Nc3 {[%clk 0:03:01]}  Nc6 {[%clk 0:03:00]} 4. d4 {[%clk 0:03:01]}  exd4 {[%clk 0:03:00]} 5. Nxd4 {[%clk 0:03:02]}  Bb4 {[%clk 0:03:00]} 6. Nxc6 {[%clk 0:03:02]}  bxc6 {[%clk 0:03:00]} 7. Bd3 {[%clk 0:03:02]}  d5 {[%clk 0:03:01]} 8. Bd2 {[%clk 0:03:03]}  O-O {[%clk 0:02:54]} 9. O-O {[%clk 0:03:02]}  Bxc3 {[%clk 0:02:53]} 10. Bxc3 {[%clk 0:03:02]}  dxe4 {[%clk 0:02:52]} 11. Bxf6 {[%clk 0:02:59]}  Qxf6 {[%clk 0:02:47]} 12. Bxe4 {[%clk 0:02:59]}  Qxb2 {[%clk 0:02:46]} 13. Bxc6 {[%clk 0:02:59]}  Rb8 {[%clk 0:02:46]} 14. Rb1 {[%clk 0:02:59]}  Qxb1 {[%clk 0:02:46]} 15. Qxb1 {[%clk 0:02:59]}  Rxb1 {[%clk 0:02:46]} 16. Rxb1 {[%clk 0:02:59]}  Rd8 {[%clk 0:02:44]} 17. Bf3 {[%clk 0:02:53]} 1/2-1/2


[Site "https://www.chess.com"]

[Event "Titled Tuesday Blitz April 18 Early 2023"]
[White "Kim, Sergey"]
[Black "Jovic, Stanoje"]
[WhiteFideId "13700570"]
[BlackFideId "905020"]
[WhiteElo "2617"]
[BlackElo "2236"]
[Result "1-0"]
[Round "11"]
[TimeControl "180+2"]
[Date "2023.04.18"]
[WhiteClock "0:00:36"]
[BlackClock "0:00:01"]

1. d4 {[%clk 0:03:00]}  Nf6 {[%clk 0:02:59]} 2. c4 {[%clk 0:03:01]}  e6 {[%clk 0:02:59]} 3. Nc3 {[%clk 0:03:01]}  Bb4 {[%clk 0:02:59]} 4. Qc2 {[%clk 0:03:01]}  O-O {[%clk 0:02:59]} 5. a3 {[%clk 0:03:01]}  Bxc3+ {[%clk 0:02:58]} 6. Qxc3 {[%clk 0:03:02]}  b6 {[%clk 0:02:53]} 7. Nf3 {[%clk 0:03:02]}  Bb7 {[%clk 0:02:52]} 8. g3 {[%clk 0:03:02]}  c5 {[%clk 0:02:49]} 9. dxc5 {[%clk 0:03:02]}  bxc5 {[%clk 0:02:49]} 10. Bg2 {[%clk 0:03:02]}  d5 {[%clk 0:02:49]} 11. cxd5 {[%clk 0:03:01]}  Nxd5 {[%clk 0:02:46]} 12. Qxc5 {[%clk 0:02:59]}  Nd7 {[%clk 0:02:45]} 13. Qd4 {[%clk 0:02:58]}  Ba6 {[%clk 0:02:35]} 14. O-O {[%clk 0:02:53]}  Bxe2 {[%clk 0:02:33]} 15. Re1 {[%clk 0:02:53]}  Bxf3 {[%clk 0:02:30]} 16. Bxf3 {[%clk 0:02:53]}  N7f6 {[%clk 0:02:28]} 17. Bd2 {[%clk 0:02:40]}  a5 {[%clk 0:02:27]} 18. Rac1 {[%clk 0:02:34]}  Rb8 {[%clk 0:02:25]} 19. Red1 {[%clk 0:02:27]}  Qb6 {[%clk 0:02:19]} 20. Qxb6 {[%clk 0:02:22]}  Rxb6 {[%clk 0:02:19]} 21. Bxa5 {[%clk 0:02:21]}  Rxb2 {[%clk 0:02:17]} 22. Rb1 {[%clk 0:02:21]}  Rfb8 {[%clk 0:02:15]} 23. Rxb2 {[%clk 0:02:21]}  Rxb2 {[%clk 0:02:15]} 24. Ra1 {[%clk 0:02:13]}  g5 {[%clk 0:02:09]} 25. h3 {[%clk 0:02:08]}  h5 {[%clk 0:02:08]} 26. Be1 {[%clk 0:02:02]}  g4 {[%clk 0:02:06]} 27. hxg4 {[%clk 0:02:02]}  hxg4 {[%clk 0:01:57]} 28. Bg2 {[%clk 0:01:58]}  Kf8 {[%clk 0:01:37]} 29. a4 {[%clk 0:01:58]}  Ke8 {[%clk 0:01:30]} 30. a5 {[%clk 0:01:59]}  Rb8 {[%clk 0:01:25]} 31. a6 {[%clk 0:01:56]}  Kd7 {[%clk 0:01:25]} 32. Bf1 {[%clk 0:01:50]}  Nc7 {[%clk 0:01:18]} 33. Bc3 {[%clk 0:01:34]}  Nfd5 {[%clk 0:01:17]} 34. Be5 {[%clk 0:01:34]}  Ra8 {[%clk 0:01:15]} 35. Bd4 {[%clk 0:01:19]}  f5 {[%clk 0:01:11]} 36. a7 {[%clk 0:01:17]}  e5 {[%clk 0:01:09]} 37. Bxe5 {[%clk 0:01:15]}  Kc6 {[%clk 0:01:01]} 38. Bd4 {[%clk 0:01:14]}  Kb7 {[%clk 0:00:46]} 39. Rb1+ {[%clk 0:01:11]}  Kc6 {[%clk 0:00:43]} 40. Rb8 {[%clk 0:01:08]}  Kd6 {[%clk 0:00:28]} 41. Bg2 {[%clk 0:01:04]}  Ke6 {[%clk 0:00:17]} 42. Bb6 {[%clk 0:00:57]}  Kd7 {[%clk 0:00:03]} 43. Bxc7 {[%clk 0:00:42]}  Rxa7 {[%clk 0:00:02]} 44. Be5 {[%clk 0:00:39]}  Ra5 {[%clk 0:00:01]} 45. Rb1 {[%clk 0:00:36]} 1-0


[Site "https://www.chess.com"]

[Event "Titled Tuesday Blitz April 18 Early 2023"]
[White "Ezat, Mohamed"]
[Black "Bettalli, Francesco"]
[WhiteFideId "10600906"]
[BlackFideId "2816453"]
[WhiteElo "2386"]
[BlackElo "2216"]
[Result "1-0"]
[Round "11"]
[TimeControl "180+2"]
[Date "2023.04.18"]
[WhiteClock "0:00:26"]
[BlackClock "0:02:38"]

1. d4 {[%clk 0:01:34]}  g6 {[%clk 0:02:58]} 2. c4 {[%clk 0:01:34]}  Bg7 {[%clk 0:02:59]} 3. e4 {[%clk 0:01:34]}  c5 {[%clk 0:02:59]} 4. d5 {[%clk 0:01:34]}  e5 {[%clk 0:03:00]} 5. Nc3 {[%clk 0:01:34]}  d6 {[%clk 0:03:00]} 6. Be2 {[%clk 0:01:34]}  Ne7 {[%clk 0:03:00]} 7. h4 {[%clk 0:01:33]}  O-O {[%clk 0:03:01]} 8. h5 {[%clk 0:01:33]}  f5 {[%clk 0:03:02]} 9. hxg6 {[%clk 0:01:34]}  hxg6 {[%clk 0:03:02]} 10. Bg5 {[%clk 0:01:33]}  Qe8 {[%clk 0:03:00]} 11. Nf3 {[%clk 0:01:30]}  a6 {[%clk 0:03:00]} 12. Nh4 {[%clk 0:01:27]}  Bf6 {[%clk 0:02:58]} 13. Qd2 {[%clk 0:01:23]}  f4 {[%clk 0:02:58]} 14. Nf3 {[%clk 0:01:12]}  Bg4 {[%clk 0:02:54]} 15. Bxf6 {[%clk 0:01:12]}  Rxf6 {[%clk 0:02:55]} 16. Ng5 {[%clk 0:01:13]}  Bxe2 {[%clk 0:02:54]} 17. Qxe2 {[%clk 0:01:12]}  Qf8 {[%clk 0:02:46]} 18. Qg4 {[%clk 0:01:09]}  Qg7 {[%clk 0:02:44]} 19. O-O-O {[%clk 0:00:43]}  b5 {[%clk 0:02:42]} 20. Rh7 {[%clk 0:00:37]}  Qxh7 {[%clk 0:02:41]} 21. Nxh7 {[%clk 0:00:37]}  Kxh7 {[%clk 0:02:42]} 22. Rh1+ {[%clk 0:00:37]}  Kg7 {[%clk 0:02:42]} 23. Qh4 {[%clk 0:00:37]}  Nd7 {[%clk 0:02:38]} 24. Qh7+ {[%clk 0:00:34]}  Kf8 {[%clk 0:02:38]} 25. Qh8+ {[%clk 0:00:33]}  Ng8 {[%clk 0:02:39]} 26. Rh7 {[%clk 0:00:31]}  Rf7 {[%clk 0:02:39]} 27. Rxf7+ {[%clk 0:00:28]}  Kxf7 {[%clk 0:02:39]} 28. Qh7+ {[%clk 0:00:28]}  Kf6 {[%clk 0:02:36]} 29. Qxd7 {[%clk 0:00:28]}  Kg5 {[%clk 0:02:37]} 30. Qxd6 {[%clk 0:00:27]}  b4 {[%clk 0:02:38]} 31. Qxe5+ {[%clk 0:00:27]}  Kg4 {[%clk 0:02:38]} 32. Ne2 {[%clk 0:00:27]}  g5 {[%clk 0:02:38]} 33. f3+ {[%clk 0:00:26]}  Kh4 {[%clk 0:02:38]} 34. Qh8+ {[%clk 0:00:26]} 1-0


[Site "https://www.chess.com"]

[Event "Titled Tuesday Blitz April 18 Early 2023"]
[White "Akylbek2021"]
[Black "djokovic74"]
[WhiteElo "2445"]
[BlackElo "2557"]
[Result "1-0"]
[Round "11"]
[TimeControl "180+2"]
[Date "2023.04.18"]
[WhiteClock "0:00:51"]
[BlackClock "0:00:05"]

1. e4 {[%clk 0:03:00]}  e6 {[%clk 0:02:57]} 2. d4 {[%clk 0:02:57]}  d5 {[%clk 0:02:58]} 3. e5 {[%clk 0:02:56]}  c5 {[%clk 0:02:57]} 4. c3 {[%clk 0:02:57]}  Nc6 {[%clk 0:02:58]} 5. Nf3 {[%clk 0:02:57]}  Qb6 {[%clk 0:02:59]} 6. Bd3 {[%clk 0:02:58]}  cxd4 {[%clk 0:02:58]} 7. O-O {[%clk 0:02:59]}  Bd7 {[%clk 0:02:58]} 8. Re1 {[%clk 0:02:58]}  Nge7 {[%clk 0:02:56]} 9. h4 {[%clk 0:02:59]}  h6 {[%clk 0:02:56]} 10. a3 {[%clk 0:02:58]}  dxc3 {[%clk 0:02:55]} 11. Nxc3 {[%clk 0:02:57]}  Nc8 {[%clk 0:02:47]} 12. b4 {[%clk 0:02:55]}  a6 {[%clk 0:02:45]} 13. h5 {[%clk 0:02:47]}  Be7 {[%clk 0:02:39]} 14. Bf4 {[%clk 0:02:36]}  Qd8 {[%clk 0:02:38]} 15. Qd2 {[%clk 0:02:35]}  Nb6 {[%clk 0:02:36]} 16. Rac1 {[%clk 0:02:35]}  Rc8 {[%clk 0:02:26]} 17. Ne2 {[%clk 0:02:35]}  Na7 {[%clk 0:02:20]} 18. Be3 {[%clk 0:02:31]}  Rxc1 {[%clk 0:02:10]} 19. Rxc1 {[%clk 0:02:29]}  Bb5 {[%clk 0:02:10]} 20. Nfd4 {[%clk 0:02:23]}  Bxd3 {[%clk 0:02:06]} 21. Qxd3 {[%clk 0:02:24]}  O-O {[%clk 0:01:42]} 22. Nb3 {[%clk 0:02:09]}  Nb5 {[%clk 0:01:38]} 23. Na5 {[%clk 0:02:07]}  Nc4 {[%clk 0:01:31]} 24. Nxb7 {[%clk 0:01:55]}  Qc7 {[%clk 0:01:13]} 25. Na5 {[%clk 0:01:54]}  Qxe5 {[%clk 0:01:05]} 26. Nxc4 {[%clk 0:01:42]}  dxc4 {[%clk 0:01:05]} 27. Qxc4 {[%clk 0:01:35]}  Nxa3 {[%clk 0:00:36]} 28. Qxa6 {[%clk 0:01:32]}  Nb5 {[%clk 0:00:37]} 29. Ng3 {[%clk 0:01:23]}  Nc3 {[%clk 0:00:24]} 30. Qc4 {[%clk 0:01:20]}  Nd5 {[%clk 0:00:20]} 31. Bc5 {[%clk 0:01:21]}  Rc8 {[%clk 0:00:15]} 32. Qe4 {[%clk 0:01:18]}  Qxe4 {[%clk 0:00:13]} 33. Nxe4 {[%clk 0:01:19]}  Nxb4 {[%clk 0:00:13]} 34. Be3 {[%clk 0:01:13]}  Rxc1+ {[%clk 0:00:10]} 35. Bxc1 {[%clk 0:01:14]}  Nd5 {[%clk 0:00:10]} 36. f3 {[%clk 0:01:12]}  Kf8 {[%clk 0:00:11]} 37. g4 {[%clk 0:01:13]}  Ke8 {[%clk 0:00:10]} 38. Bb2 {[%clk 0:01:12]}  f6 {[%clk 0:00:07]} 39. Kf2 {[%clk 0:01:10]}  Kf7 {[%clk 0:00:07]} 40. Nd2 {[%clk 0:01:07]}  f5 {[%clk 0:00:06]} 41. Nc4 {[%clk 0:01:04]}  Bc5+ {[%clk 0:00:05]} 42. Kg3 {[%clk 0:01:03]}  Bd6+ {[%clk 0:00:05]} 43. Nxd6+ {[%clk 0:01:01]}  Ke7 {[%clk 0:00:04]} 44. Nc4 {[%clk 0:01:00]}  f4+ {[%clk 0:00:03]} 45. Kf2 {[%clk 0:01:00]}  Kf7 {[%clk 0:00:03]} 46. Be5 {[%clk 0:01:00]}  Ke7 {[%clk 0:00:02]} 47. Bxg7 {[%clk 0:00:59]}  Kf7 {[%clk 0:00:03]} 48. Bxh6 {[%clk 0:00:58]}  Kf6 {[%clk 0:00:04]} 49. Nd2 {[%clk 0:00:56]}  e5 {[%clk 0:00:03]} 50. Ne4+ {[%clk 0:00:56]}  Kf7 {[%clk 0:00:03]} 51. Bg5 {[%clk 0:00:56]}  Ne3 {[%clk 0:00:03]} 52. Bf6 {[%clk 0:00:54]}  Nc4 {[%clk 0:00:04]} 53. g5 {[%clk 0:00:52]}  Ke6 {[%clk 0:00:02]} 54. h6 {[%clk 0:00:51]}  Ne3 {[%clk 0:00:01]} 55. h7 {[%clk 0:00:50]}  Kf5 {[%clk 0:00:02]} 56. h8=Q {[%clk 0:00:50]}  Ng4+ {[%clk 0:00:02]} 57. fxg4+ {[%clk 0:00:49]}  Kxg4 {[%clk 0:00:03]} 58. g6 {[%clk 0:00:48]}  f3 {[%clk 0:00:04]} 59. g7 {[%clk 0:00:48]}  Kf5 {[%clk 0:00:04]} 60. g8=Q {[%clk 0:00:49]}  Kxe4 {[%clk 0:00:04]} 61. Qh4+ {[%clk 0:00:47]}  Kd3 {[%clk 0:00:04]} 62. Qd5+ {[%clk 0:00:48]}  Kc2 {[%clk 0:00:04]} 63. Qhc4+ {[%clk 0:00:49]}  Kb1 {[%clk 0:00:05]} 64. Qdb5+ {[%clk 0:00:50]}  Ka1 {[%clk 0:00:05]} 65. Qca4# {[%clk 0:00:51]} 1-0


[Site "https://www.chess.com"]

[Event "Titled Tuesday Blitz April 18 Early 2023"]
[White "Sargissyan, Sargis"]
[Black "Bruedigam, Martin"]
[WhiteFideId "13303210"]
[BlackFideId "24608033"]
[WhiteElo "2109"]
[BlackElo "2331"]
[Result "0-1"]
[Round "11"]
[TimeControl "180+2"]
[Date "2023.04.18"]
[WhiteClock "0:00:45"]
[BlackClock "0:00:17"]

1. e4 {[%clk 0:03:00]}  c6 {[%clk 0:02:59]} 2. Nf3 {[%clk 0:03:00]}  d5 {[%clk 0:03:00]} 3. Nc3 {[%clk 0:03:00]}  Bg4 {[%clk 0:02:58]} 4. h3 {[%clk 0:03:01]}  Bxf3 {[%clk 0:02:58]} 5. Qxf3 {[%clk 0:03:02]}  e6 {[%clk 0:02:57]} 6. Be2 {[%clk 0:03:02]}  Nd7 {[%clk 0:02:53]} 7. O-O {[%clk 0:03:01]}  Bc5 {[%clk 0:02:53]} 8. Rd1 {[%clk 0:02:55]}  Bd4 {[%clk 0:02:51]} 9. Qf4 {[%clk 0:02:48]}  g5 {[%clk 0:02:29]} 10. Qf3 {[%clk 0:02:39]}  h5 {[%clk 0:02:13]} 11. d3 {[%clk 0:02:33]}  g4 {[%clk 0:01:56]} 12. hxg4 {[%clk 0:02:29]}  hxg4 {[%clk 0:01:57]} 13. Qxg4 {[%clk 0:02:27]}  Ngf6 {[%clk 0:01:52]} 14. Qg3 {[%clk 0:02:19]}  Qb6 {[%clk 0:01:38]} 15. Be3 {[%clk 0:02:09]}  Bxe3 {[%clk 0:01:33]} 16. fxe3 {[%clk 0:02:09]}  O-O-O {[%clk 0:01:25]} 17. exd5 {[%clk 0:02:04]}  Rdg8 {[%clk 0:01:16]} 18. Qf2 {[%clk 0:01:52]}  cxd5 {[%clk 0:01:10]} 19. d4 {[%clk 0:01:45]}  Qxb2 {[%clk 0:01:03]} 20. Nb5 {[%clk 0:01:43]}  Qb4 {[%clk 0:00:56]} 21. Qf4 {[%clk 0:01:34]}  e5 {[%clk 0:00:33]} 22. dxe5 {[%clk 0:01:33]}  Qxf4 {[%clk 0:00:32]} 23. exf4 {[%clk 0:01:34]}  Ne4 {[%clk 0:00:30]} 24. Rxd5 {[%clk 0:01:29]}  Nb6 {[%clk 0:00:24]} 25. Nd6+ {[%clk 0:01:27]}  Kb8 {[%clk 0:00:24]} 26. Rd4 {[%clk 0:01:25]}  Ng3 {[%clk 0:00:19]} 27. Bf3 {[%clk 0:01:24]}  Rh1+ {[%clk 0:00:20]} 28. Kf2 {[%clk 0:01:23]}  Rxa1 {[%clk 0:00:20]} 29. Nxb7 {[%clk 0:01:17]}  Rxa2 {[%clk 0:00:20]} 30. Rd2 {[%clk 0:01:01]}  Nc4 {[%clk 0:00:18]} 31. Rd7 {[%clk 0:00:59]}  Rxc2+ {[%clk 0:00:18]} 32. Ke1 {[%clk 0:00:50]}  Rc1+ {[%clk 0:00:18]} 33. Bd1 {[%clk 0:00:50]}  Ne3 {[%clk 0:00:17]} 34. Na5 {[%clk 0:00:47]}  Rxd1+ {[%clk 0:00:16]} 35. Rxd1 {[%clk 0:00:45]}  Nxd1 {[%clk 0:00:17]} 0-1


[Site "https://www.chess.com"]

[Event "Titled Tuesday Blitz April 18 Early 2023"]
[White "Jimenez Jimenez, Leandro"]
[Black "Tomaszewski, Kacper"]
[WhiteFideId "6415253"]
[BlackFideId "1127373"]
[WhiteElo "2263"]
[BlackElo "2211"]
[Result "1-0"]
[Round "11"]
[TimeControl "180+2"]
[Date "2023.04.18"]
[WhiteClock "0:00:05"]
[BlackClock "0:00:06"]

1. d4 {[%clk 0:03:00]}  Nf6 {[%clk 0:02:58]} 2. c4 {[%clk 0:03:01]}  g6 {[%clk 0:02:57]} 3. g3 {[%clk 0:03:01]}  Bg7 {[%clk 0:02:56]} 4. Bg2 {[%clk 0:03:01]}  O-O {[%clk 0:02:55]} 5. Nc3 {[%clk 0:03:00]}  c5 {[%clk 0:02:48]} 6. dxc5 {[%clk 0:02:50]}  Na6 {[%clk 0:02:47]} 7. Be3 {[%clk 0:02:25]}  Ng4 {[%clk 0:02:43]} 8. Bd2 {[%clk 0:02:01]}  Nxc5 {[%clk 0:02:39]} 9. Nf3 {[%clk 0:02:01]}  Qb6 {[%clk 0:02:31]} 10. O-O {[%clk 0:01:39]}  Qxb2 {[%clk 0:02:13]} 11. Rb1 {[%clk 0:01:31]}  Bxc3 {[%clk 0:02:05]} 12. Rxb2 {[%clk 0:01:28]}  Bxb2 {[%clk 0:02:06]} 13. Bb4 {[%clk 0:01:25]}  d6 {[%clk 0:01:58]} 14. h3 {[%clk 0:01:23]}  Ne5 {[%clk 0:01:53]} 15. Qb1 {[%clk 0:01:13]}  Nxf3+ {[%clk 0:01:52]} 16. Bxf3 {[%clk 0:01:11]}  Bg7 {[%clk 0:01:46]} 17. Kg2 {[%clk 0:01:10]}  Rb8 {[%clk 0:01:42]} 18. Qc1 {[%clk 0:01:06]}  Be6 {[%clk 0:01:35]} 19. Rd1 {[%clk 0:00:49]}  b6 {[%clk 0:01:25]} 20. Bd5 {[%clk 0:00:40]}  Rfc8 {[%clk 0:01:24]} 21. Qe3 {[%clk 0:00:35]}  Bf6 {[%clk 0:01:05]} 22. Bc3 {[%clk 0:00:26]}  Bxd5+ {[%clk 0:00:39]} 23. cxd5 {[%clk 0:00:25]}  Bxc3 {[%clk 0:00:23]} 24. Qxc3 {[%clk 0:00:23]}  Nd7 {[%clk 0:00:21]} 25. Qe3 {[%clk 0:00:22]}  Kf8 {[%clk 0:00:14]} 26. h4 {[%clk 0:00:19]}  Nf6 {[%clk 0:00:13]} 27. Qh6+ {[%clk 0:00:13]}  Kg8 {[%clk 0:00:13]} 28. Qe3 {[%clk 0:00:13]}  Rc7 {[%clk 0:00:13]} 29. Rd3 {[%clk 0:00:12]}  Rbc8 {[%clk 0:00:13]} 30. f3 {[%clk 0:00:12]}  Kf8 {[%clk 0:00:13]} 31. g4 {[%clk 0:00:12]}  Kg7 {[%clk 0:00:11]} 32. h5 {[%clk 0:00:10]}  Rd8 {[%clk 0:00:08]} 33. Qd4 {[%clk 0:00:08]}  Kg8 {[%clk 0:00:07]} 34. h6 {[%clk 0:00:07]}  Ne8 {[%clk 0:00:06]} 35. Qf4 {[%clk 0:00:06]}  Rdc8 {[%clk 0:00:06]} 36. Re3 {[%clk 0:00:06]}  Rd8 {[%clk 0:00:06]} 37. Qg5 {[%clk 0:00:06]}  Nf6 {[%clk 0:00:05]} 38. Rxe7 {[%clk 0:00:05]}  Rxe7 {[%clk 0:00:05]} 39. Qxf6 {[%clk 0:00:05]}  Kf8 {[%clk 0:00:06]} 40. Qh8# {[%clk 0:00:05]} 1-0


[Site "https://www.chess.com"]

[Event "Titled Tuesday Blitz April 18 Early 2023"]
[White "Gontcharov, Vladislav"]
[Black "Orujov2008"]
[WhiteFideId "4123492"]
[WhiteElo "2420"]
[BlackElo "2436"]
[Result "1-0"]
[Round "11"]
[TimeControl "180+2"]
[Date "2023.04.18"]
[WhiteClock "0:01:17"]
[BlackClock "0:00:11"]

1. d4 {[%clk 0:03:00]}  Nf6 {[%clk 0:02:59]} 2. c4 {[%clk 0:03:00]}  e6 {[%clk 0:02:59]} 3. Nc3 {[%clk 0:03:00]}  Bb4 {[%clk 0:02:58]} 4. e3 {[%clk 0:03:00]}  O-O {[%clk 0:02:57]} 5. Bd3 {[%clk 0:03:00]}  d5 {[%clk 0:02:57]} 6. Nf3 {[%clk 0:02:56]}  dxc4 {[%clk 0:02:51]} 7. Bxc4 {[%clk 0:02:55]}  c5 {[%clk 0:02:51]} 8. O-O {[%clk 0:02:54]}  Nc6 {[%clk 0:02:52]} 9. a3 {[%clk 0:02:51]}  Bxc3 {[%clk 0:02:52]} 10. bxc3 {[%clk 0:02:51]}  Qc7 {[%clk 0:02:52]} 11. Qe2 {[%clk 0:02:44]}  b6 {[%clk 0:02:45]} 12. e4 {[%clk 0:02:33]}  e5 {[%clk 0:02:29]} 13. Bg5 {[%clk 0:02:20]}  cxd4 {[%clk 0:02:18]} 14. cxd4 {[%clk 0:02:11]}  Nxd4 {[%clk 0:02:15]} 15. Nxd4 {[%clk 0:02:06]}  exd4 {[%clk 0:02:16]} 16. Bxf6 {[%clk 0:02:00]}  gxf6 {[%clk 0:02:17]} 17. Bd5 {[%clk 0:02:01]}  Bb7 {[%clk 0:02:10]} 18. Rac1 {[%clk 0:02:00]}  Qe7 {[%clk 0:02:07]} 19. Qg4+ {[%clk 0:01:58]}  Kh8 {[%clk 0:02:07]} 20. Rfd1 {[%clk 0:01:46]}  Bxd5 {[%clk 0:01:46]} 21. exd5 {[%clk 0:01:46]}  Qe5 {[%clk 0:01:36]} 22. Rxd4 {[%clk 0:01:43]}  Rad8 {[%clk 0:01:35]} 23. Rcd1 {[%clk 0:01:42]}  Rd6 {[%clk 0:01:34]} 24. h3 {[%clk 0:01:41]}  Rfd8 {[%clk 0:01:33]} 25. Qf3 {[%clk 0:01:41]}  b5 {[%clk 0:01:29]} 26. g4 {[%clk 0:01:35]}  a5 {[%clk 0:01:20]} 27. Kg2 {[%clk 0:01:35]}  b4 {[%clk 0:01:04]} 28. axb4 {[%clk 0:01:35]}  axb4 {[%clk 0:01:05]} 29. Rxb4 {[%clk 0:01:20]}  Rxd5 {[%clk 0:01:05]} 30. Re4 {[%clk 0:01:20]}  Qg5 {[%clk 0:00:54]} 31. Rxd5 {[%clk 0:01:18]}  Rxd5 {[%clk 0:00:51]} 32. h4 {[%clk 0:01:18]}  Qxh4 {[%clk 0:00:12]} 33. Re8+ {[%clk 0:01:18]}  Kg7 {[%clk 0:00:12]} 34. Qxd5 {[%clk 0:01:17]}  Qxg4+ {[%clk 0:00:12]} 35. Kf1 {[%clk 0:01:18]}  Qh3+ {[%clk 0:00:11]} 36. Qg2+ {[%clk 0:01:17]} 1-0


[Site "https://www.chess.com"]

[Event "Titled Tuesday Blitz April 18 Early 2023"]
[White "Begunov, Konstantin"]
[Black "Reprintsev, Alexander"]
[WhiteFideId "4118510"]
[BlackFideId "14100541"]
[WhiteElo "2087"]
[BlackElo "2211"]
[Result "1-0"]
[Round "11"]
[TimeControl "180+2"]
[Date "2023.04.18"]
[WhiteClock "0:00:45"]
[BlackClock "0:01:05"]

1. d4 {[%clk 0:02:57]}  d5 {[%clk 0:02:59]} 2. c4 {[%clk 0:02:57]}  e5 {[%clk 0:02:58]} 3. dxe5 {[%clk 0:02:56]}  d4 {[%clk 0:02:58]} 4. Nf3 {[%clk 0:02:56]}  Nc6 {[%clk 0:02:58]} 5. g3 {[%clk 0:02:57]}  Nge7 {[%clk 0:02:58]} 6. Bg2 {[%clk 0:02:55]}  Ng6 {[%clk 0:02:58]} 7. O-O {[%clk 0:02:46]}  Ngxe5 {[%clk 0:02:57]} 8. b3 {[%clk 0:02:40]}  Nxf3+ {[%clk 0:02:56]} 9. exf3 {[%clk 0:02:34]}  Be7 {[%clk 0:02:56]} 10. Bb2 {[%clk 0:02:33]}  O-O {[%clk 0:02:54]} 11. Nd2 {[%clk 0:02:33]}  g6 {[%clk 0:02:45]} 12. f4 {[%clk 0:02:33]}  Bf6 {[%clk 0:02:45]} 13. Bd5 {[%clk 0:02:23]}  Be6 {[%clk 0:02:41]} 14. Ne4 {[%clk 0:02:22]}  Bg7 {[%clk 0:02:40]} 15. Bxe6 {[%clk 0:02:16]}  fxe6 {[%clk 0:02:40]} 16. Nc5 {[%clk 0:02:17]}  Qe7 {[%clk 0:02:32]} 17. Nd3 {[%clk 0:02:09]}  Rad8 {[%clk 0:02:27]} 18. Re1 {[%clk 0:02:08]}  g5 {[%clk 0:02:16]} 19. a4 {[%clk 0:02:04]}  Qf7 {[%clk 0:02:04]} 20. fxg5 {[%clk 0:01:53]}  e5 {[%clk 0:02:03]} 21. Ba3 {[%clk 0:01:47]}  Rfe8 {[%clk 0:02:03]} 22. Re4 {[%clk 0:01:45]}  Qf5 {[%clk 0:01:59]} 23. Qe2 {[%clk 0:01:40]}  Qxg5 {[%clk 0:01:59]} 24. Re1 {[%clk 0:01:40]}  a5 {[%clk 0:01:33]} 25. f4 {[%clk 0:01:34]}  Qg6 {[%clk 0:01:30]} 26. fxe5 {[%clk 0:01:31]}  Bh6 {[%clk 0:01:18]} 27. Rg4 {[%clk 0:01:23]}  Bg5 {[%clk 0:01:16]} 28. h4 {[%clk 0:01:18]}  h6 {[%clk 0:01:16]} 29. hxg5 {[%clk 0:01:18]}  h5 {[%clk 0:01:15]} 30. Rh4 {[%clk 0:00:49]}  Qxg5 {[%clk 0:01:06]} 31. Qxh5 {[%clk 0:00:46]}  Qxg3+ {[%clk 0:01:05]} 32. Kh1 {[%clk 0:00:45]} 1-0


[Site "https://www.chess.com"]

[Event "Titled Tuesday Blitz April 18 Early 2023"]
[White "Chernomordik, Pavel"]
[Black "Skaric, Djuro"]
[WhiteFideId "2804530"]
[BlackFideId "934569"]
[WhiteElo "2193"]
[BlackElo "2282"]
[Result "1-0"]
[Round "11"]
[TimeControl "180+2"]
[Date "2023.04.18"]
[WhiteClock "0:00:58"]
[BlackClock "0:01:00"]

1. e4 {[%clk 0:03:00]}  d6 {[%clk 0:03:00]} 2. d4 {[%clk 0:02:58]}  g6 {[%clk 0:03:01]} 3. Nc3 {[%clk 0:02:56]}  Bg7 {[%clk 0:03:01]} 4. f4 {[%clk 0:02:55]}  Nf6 {[%clk 0:03:00]} 5. Nf3 {[%clk 0:02:54]}  a6 {[%clk 0:03:00]} 6. Bd3 {[%clk 0:02:46]}  b5 {[%clk 0:03:00]} 7. e5 {[%clk 0:02:44]}  Ng4 {[%clk 0:02:58]} 8. Be4 {[%clk 0:02:37]}  c6 {[%clk 0:02:57]} 9. h3 {[%clk 0:02:34]}  d5 {[%clk 0:02:56]} 10. Bd3 {[%clk 0:02:25]}  Nh6 {[%clk 0:02:56]} 11. g4 {[%clk 0:02:26]}  Ng8 {[%clk 0:02:54]} 12. Be3 {[%clk 0:02:23]}  Nd7 {[%clk 0:02:54]} 13. f5 {[%clk 0:02:18]}  Nb6 {[%clk 0:02:53]} 14. Qd2 {[%clk 0:02:15]}  Qc7 {[%clk 0:02:50]} 15. O-O-O {[%clk 0:02:10]}  Bd7 {[%clk 0:02:43]} 16. Bf4 {[%clk 0:02:09]}  b4 {[%clk 0:02:42]} 17. Ne2 {[%clk 0:02:05]}  Qb7 {[%clk 0:02:34]} 18. Qxb4 {[%clk 0:02:02]}  a5 {[%clk 0:02:33]} 19. Qb3 {[%clk 0:01:53]}  a4 {[%clk 0:02:32]} 20. Qb4 {[%clk 0:01:53]}  Bf8 {[%clk 0:02:32]} 21. e6 {[%clk 0:01:42]}  fxe6 {[%clk 0:02:32]} 22. fxg6 {[%clk 0:01:42]}  e5 {[%clk 0:02:29]} 23. Bxe5 {[%clk 0:01:27]}  e6 {[%clk 0:02:23]} 24. Qc3 {[%clk 0:01:25]}  a3 {[%clk 0:02:21]} 25. b3 {[%clk 0:01:20]}  Rb8 {[%clk 0:01:50]} 26. Bxh8 {[%clk 0:01:13]}  Na4 {[%clk 0:01:24]} 27. bxa4 {[%clk 0:01:03]}  hxg6 {[%clk 0:01:02]} 28. Bxg6+ {[%clk 0:01:02]}  Ke7 {[%clk 0:01:00]} 29. Qc5+ {[%clk 0:00:58]} 1-0


[Site "https://www.chess.com"]